bitfinex/quotes_ETHUSD_20250107
["timestamp","ask_amount","ask_price","bid_price","bid_amount"]
[1736267174188,0.0075,3483.7,3481.9,0.288712]
[1736267174189,0.03488358,3483.6,3482.4,0.9484]
[1736267174390,0.0075,3483.2,3482.4,0.9484]
[1736267174555,0.0075,3483.2,3482.5,0.0075]
[1736267174900,0.0075,3483.3,3482.5,0.0075]
[1736267175104,0.0075,3483.0,3482.5,0.03621118]
[1736267175479,2.8706,3483.6,3482.5,0.03621118]
[1736267175788,0.0075,3482.8,3482.5,0.03621118]
[1736267175985,3.0,3483.7,3482.7,0.0075]
[1736267176187,0.57932604,3483.9,3482.9,0.0075]
[1736267176388,2.87056,3483.7,3482.9,0.0075]
[1736267176568,3.0075,3483.6,3483.0,0.0075]
[1736267176770,2.8781,3483.6,3483.0,0.0075]
[1736267177490,2.8781,3483.6,3482.9,0.0075]
[1736267177689,0.0075,3483.8,3483.0,0.0075]
[1736267177864,0.0075,3483.8,3483.4,0.0075]
[1736267178194,1.3775,3484.8,3483.4,0.03620414]
[1736267178394,1.79813245,3484.9,3483.6,0.0075]
[1736267178691,1.79813245,3484.9,3484.0,2.87024]
[1736267179002,1.79813245,3484.9,3484.1,0.03619516]
[1736267179192,1.0002,3485.5,3484.1,0.03619516]
[1736267179193,1.79813245,3485.3,3484.1,0.03619516]
[1736267179692,1.79813245,3485.3,3484.6,0.0075]
[1736267180470,2.86904,3485.5,3484.6,0.0075]
[1736267180669,0.0075,3485.4,3484.6,0.0075]
[1736267180870,0.0075,3485.1,3484.6,0.0075]
[1736267181183,0.0075,3485.0,3484.6,0.0075]
[1736267181708,3.0,3485.4,3483.7,3.63748172]
[1736267181709,0.015,3484.8,3483.8,0.9378]
[1736267182005,0.015,3484.5,3483.8,0.9378]
[1736267182215,0.015,3484.5,3483.9,0.0075]
[1736267182585,0.015,3484.5,3483.9,0.03619991]
[1736267182770,2.87004,3484.3,3483.9,0.0075]
[1736267182972,0.287004,3484.3,3482.6,0.9564]
[1736267183294,0.287004,3484.3,3482.9,0.9639]
[1736267183295,2.88501,3484.3,3482.9,0.9639]
[1736267183468,0.015,3484.1,3482.9,0.9639]
[1736267183873,3.015,3484.1,3482.9,0.9639]
[1736267184171,0.015,3483.9,3482.9,0.9639]
[1736267184371,2.88535,3483.9,3482.9,0.9639]
[1736267184598,2.88535,3483.9,3483.1,0.0075]
[1736267184798,0.015,3483.7,3483.1,0.0075]
[1736267185275,0.015,3483.7,3482.9,0.9564]
[1736267185467,0.0075,3483.4,3482.9,0.9564]
[1736267185668,0.015,3483.3,3482.3,1.0265]
[1736267185908,0.015,3483.3,3482.4,0.03620895]
[1736267186114,0.015,3483.3,3482.6,0.0075]
[1736267186310,0.01884544,3483.2,3483.0,2.87107]
[1736267186533,1.3775,3484.8,3483.2,0.0075]
[1736267186737,0.56730581,3484.4,3483.2,0.0075]
[1736267187025,2.87014,3484.2,3483.2,0.0075]
[1736267187428,0.015,3484.1,3483.3,0.0075]
[1736267187715,0.015,3484.1,3483.0,0.0075]
[1736267187872,2.88521,3484.1,3483.0,0.0075]
[1736267188312,0.015,3484.1,3483.0,0.03620179]
[1736267188473,0.015,3484.1,3483.2,0.0075]
[1736267188812,0.015,3484.1,3483.2,0.03620173]
[1736267189206,0.015,3484.1,3483.2,0.0075]
[1736267189411,0.015,3484.1,3483.2,0.03620174]
[1736267190113,2.04813245,3485.9,3483.7,0.0075]
[1736267190114,5.21736,3485.1,3483.7,0.0075]
[1736267190332,1.3775,3485.3,3483.9,0.9929]
[1736267190608,0.0075,3485.2,3484.1,0.0075]
[1736267190813,0.0075,3485.2,3484.3,0.0075]
[1736267191189,0.0075,3485.4,3484.3,0.0075]
[1736267191489,0.58592193,3485.4,3484.2,0.0075]
[1736267191718,0.0075,3485.2,3484.2,0.39668543]
[1736267192060,0.0075,3485.2,3484.4,0.0075]
[1736267192264,0.0075,3485.3,3484.4,0.0075]
[1736267192468,0.015,3485.3,3484.1,0.0075]
[1736267192754,0.0075,3485.3,3484.4,0.0075]
[1736267193066,0.0075,3485.8,3484.6,0.0075]
[1736267193265,0.0075,3485.8,3484.8,0.0075]
[1736267193722,6.10671131,3486.2,3485.0,0.0075]
[1736267193723,0.58606374,3486.2,3485.0,0.0075]
[1736267193922,0.0075,3485.6,3485.0,0.0075]
[1736267194302,0.0075,3485.4,3485.0,0.0075]
[1736267194846,0.02748125,3485.3,3485.0,0.03618966]
[1736267195023,0.0075,3485.2,3485.0,0.03618791]
[1736267195378,0.0075,3485.2,3484.9,0.9212]
[1736267195379,0.0075,3485.2,3485.1,0.39019679]
[1736267195503,0.015,3486.0,3485.2,0.0075]
[1736267195707,0.015,3486.0,3484.4,0.9475]
[1736267195708,0.015,3485.5,3484.4,0.9475]
[1736267195899,0.015,3485.5,3484.5,0.0075]
[1736267196158,0.015,3485.3,3484.5,0.0075]
[1736267196365,0.015,3485.1,3484.5,0.0075]
[1736267196677,0.015,3485.1,3484.5,0.12390497]
[1736267196864,1.3775,3485.4,3484.5,0.15260006]
[1736267197159,0.015,3484.9,3484.5,0.12390497]
[1736267197663,0.015,3485.3,3484.5,0.12390497]
[1736267197844,0.015,3484.7,3484.5,0.12390497]
[1736267198138,0.04248125,3484.6,3484.5,0.12390497]
[1736267198351,0.58313342,3485.4,3484.5,0.12390497]
[1736267198506,0.02798902,3484.6,3484.5,0.12390497]
[1736267198706,0.0075,3485.3,3484.5,0.12390497]
[1736267198901,0.02798902,3485.2,3484.5,0.12390497]
[1736267199344,0.0075,3485.1,3484.5,0.15259933]
[1736267199548,0.0075,3485.1,3484.5,0.12390497]
[1736267199752,0.02798902,3485.0,3484.5,0.12390497]
[1736267199946,0.0075,3484.9,3484.5,0.12390497]
[1736267200351,0.0075,3484.7,3484.5,0.12390497]
[1736267200939,0.03548902,3484.6,3484.5,0.12390497]
[1736267201140,9.14349033,3484.6,3484.5,0.11640497]
[1736267201456,10.52099033,3484.6,3484.5,0.11640497]
[1736267201635,0.015,3483.9,3483.0,0.9468]
[1736267202143,0.015,3483.7,3483.0,0.9468]
[1736267202329,0.015,3483.7,3483.1,0.02870661]
[1736267202535,0.02798902,3483.6,3483.1,0.02870661]
[1736267202860,0.0075,3483.5,3483.1,0.02870661]
[1736267203084,0.03548902,3483.5,3483.0,0.9468]
[1736267203261,0.0075,3484.0,3483.0,0.9468]
[1736267203462,0.0075,3483.3,3483.1,0.03620587]
[1736267203669,0.0075,3483.3,3483.1,0.0075]
[1736267203884,0.0075,3483.9,3483.1,0.0075]
[1736267204091,0.0075,3483.9,3483.1,0.03620588]
[1736267204244,0.0075,3483.7,3483.1,0.13727326]
[1736267204759,0.0075,3484.1,3483.3,0.0075]
[1736267204963,0.02798902,3483.6,3483.3,0.0075]
[1736267205158,0.0075,3483.5,3483.2,0.0075]
[1736267205389,0.0075,3483.5,3483.2,0.08197563]
[1736267205703,0.015,3483.8,3483.2,0.08197563]
[1736267206056,0.015,3483.6,3483.2,0.08197563]
[1736267206783,0.015,3483.4,3483.2,0.08197563]
[1736267207102,0.02740947,3483.5,3483.2,0.08197563]
[1736267207304,1.3775,3484.2,3483.2,0.08197563]
[1736267207507,0.02740947,3483.4,3483.3,6.87764259]
[1736267207848,4.39755447,3485.1,3483.8,0.0075]
[1736267208046,3.0075,3485.0,3483.8,2.87789]
[1736267208345,1.19162003,3485.5,3484.1,2.87767]
[1736267208346,1.33660244,3485.5,3484.1,2.87767]
[1736267208492,1.19162003,3485.5,3484.3,0.0075]
[1736267208696,0.58099525,3485.4,3484.3,0.0075]
[1736267208899,2.8697,3484.7,3483.9,0.9706]
[1736267209119,0.015,3484.5,3484.0,0.0075]
[1736267209815,0.015,3484.5,3483.7,0.0075]
[1736267210025,0.015,3484.5,3483.9,0.0075]
[1736267210192,1.51909298,3485.2,3483.9,2.90652938]
[1736267210533,2.88437,3485.1,3484.1,0.0075]
[1736267210833,1.51909298,3485.2,3484.1,0.0075]
[1736267210834,2.86959,3484.9,3484.1,0.0075]
[1736267210997,0.015,3485.1,3484.1,0.0075]
[1736267211202,0.0075,3484.5,3483.6,0.9332]
[1736267211510,0.9254,3485.1,3483.7,0.9332]
[1736267211707,0.0075,3484.5,3483.7,0.9332]
[1736267211906,2.87739,3484.5,3483.8,0.0075]
[1736267212112,0.432989,3484.5,3483.8,0.03620122]
[1736267212317,0.0075,3484.7,3483.8,0.03620122]
[1736267212515,2.86985,3484.5,3483.8,0.03620122]
[1736267212707,0.0075,3484.4,3483.8,0.0075]
[1736267213137,0.58033701,3484.5,3483.3,0.9723]
[1736267213138,0.015,3484.2,3483.3,0.9723]
[1736267213300,0.015,3483.9,3483.3,0.9723]
[1736267213500,0.015,3483.9,3483.2,0.07447563]
[1736267213822,0.015,3483.7,3483.2,0.07447563]
[1736267214021,0.015,3483.7,3483.3,0.0075]
[1736267214287,0.015,3483.9,3483.3,0.0075]
[1736267214433,0.015,3483.5,3483.3,0.0075]
[1736267214634,0.0075,3483.5,3483.3,0.0075]
[1736267214808,3.45018701,3484.5,3483.3,2.90698649]
[1736267214809,0.58033701,3484.5,3483.3,2.90698649]
[1736267215010,0.7641747,3484.4,3483.5,0.0075]
[1736267215214,0.58033701,3484.5,3483.5,0.03620253]
[1736267215611,3.45018701,3484.5,3483.5,0.03620253]
[1736267215816,3.45018701,3484.5,3483.5,0.0075]
[1736267215817,0.0075,3484.3,3483.5,0.0075]
[1736267216044,2.87754,3484.3,3483.5,0.0075]
[1736267216408,0.0075,3484.0,3483.5,0.0075]
[1736267216605,0.0075,3484.4,3483.5,0.0075]
[1736267216836,0.015,3484.4,3483.5,0.0075]
[1736267217141,2.87023,3484.1,3483.5,0.0075]
[1736267217435,0.015,3483.8,3483.3,0.0075]
[1736267217612,0.015,3483.8,3483.2,0.07447563]
[1736267217812,0.015,3483.7,3483.2,0.07447563]
[1736267218440,4.24787,3483.9,3483.2,0.07447563]
[1736267218739,0.015,3483.8,3483.2,0.07447563]
[1736267218908,2.88546,3483.8,3483.2,0.07447563]
[1736267219106,0.015,3483.8,3483.2,0.07447563]
[1736267219310,0.015,3483.6,3483.2,0.07447563]
[1736267219706,0.015,3483.8,3483.3,0.0075]
[1736267220253,0.0075,3483.8,3483.4,0.94]
[1736267220543,0.0075,3483.8,3483.5,0.02870381]
[1736267220745,0.015,3483.8,3483.5,0.02870381]
[1736267221048,0.015,3483.8,3483.4,0.94]
[1736267221348,1.3775,3483.9,3483.2,0.07447563]
[1736267221349,3.23824131,3483.9,3483.2,0.07447563]
[1736267221523,0.015,3483.4,3483.2,0.07447563]
[1736267221722,0.015,3483.4,3482.6,0.9202]
[1736267221723,0.015,3483.4,3482.7,1.22362412]
[1736267221934,0.01479265,3483.7,3482.7,1.19491378]
[1736267222134,2.8708,3483.4,3482.7,1.19491378]
[1736267222311,2.8708,3483.4,3482.8,0.0075]
[1736267222312,0.02979265,3483.3,3482.8,0.0075]
[1736267222711,0.015,3483.1,3482.8,0.0075]
[1736267222908,0.015,3483.1,3482.7,0.06937807]
[1736267223455,0.57491338,3483.4,3482.7,0.75836197]
[1736267223625,0.0075,3482.9,3482.7,0.75836197]
[1736267223813,0.0075,3482.9,3482.7,0.06187807]
[1736267224011,0.03356704,3482.8,3482.7,0.06187807]
[1736267224225,0.0075,3482.8,3482.7,0.06187807]
[1736267225426,0.03331293,3482.8,3482.7,0.06187807]
[1736267225951,0.04081293,3482.8,3482.7,0.05437807]
[1736267226529,0.34827614,3482.8,3482.7,0.05437807]
[1736267226732,3.21952614,3482.8,3482.7,0.05437807]
[1736267226946,3.21952614,3482.8,3482.7,0.06187807]
[1736267226947,0.34827614,3482.8,3482.7,0.06187807]
[1736267227557,0.93447649,3482.8,3482.7,0.06187807]
[1736267227761,3.80572649,3482.8,3482.7,0.05437807]
[1736267228352,3.77991356,3482.8,3482.7,0.05437807]
[1736267229288,0.90866356,3482.8,3482.7,0.05437807]
[1736267229951,2.015993,3482.8,3482.7,0.04687807]
[1736267230156,4.887243,3482.8,3482.7,0.04687807]
[1736267230588,5.820343,3482.8,3482.7,0.04687807]
[1736267230853,1.4,3482.0,3481.5,0.00822266]
[1736267231020,0.01479265,3481.9,3481.5,0.00822266]
[1736267231655,0.015,3481.8,3481.5,0.00822266]
[1736267233021,2.88709,3481.8,3481.5,0.00822266]
[1736267233227,0.015,3481.6,3481.5,0.00822266]
[1736267233428,0.01479265,3481.7,3481.5,0.00822266]
[1736267233650,0.01479265,3481.9,3481.5,0.00822266]
[1736267233968,1.4,3482.0,3481.6,0.9769]
[1736267234138,1.4,3482.0,3481.7,0.02871983]
[1736267234342,1.4,3482.0,3481.8,0.42520838]
[1736267234723,0.0075,3481.9,3481.7,0.04266479]
[1736267235364,0.0075,3481.9,3481.8,0.0075]
[1736267235553,0.015,3481.9,3481.8,0.0075]
[1736267235750,0.02229265,3481.9,3481.8,0.0075]
[1736267235955,0.0075,3481.9,3481.8,0.0075]
[1736267236469,0.015,3481.9,3481.8,0.0075]
[1736267236623,2.88699,3481.9,3481.8,0.0075]
[1736267236968,5.27627,3481.8,3481.7,0.04266479]
[1736267237135,5.84106265,3481.8,3481.7,0.04266479]
[1736267237335,5.81877,3481.8,3481.7,0.04266479]
[1736267238363,5.81877,3481.8,3481.7,0.03516479]
[1736267238836,5.81877,3481.8,3481.7,0.04266479]
[1736267239042,9.82800886,3481.8,3481.7,0.04266479]
[1736267240172,1.4075,3480.9,3479.6,3.23824131]
[1736267240332,0.01479265,3480.8,3479.7,3.0]
[1736267240756,1.4,3480.9,3480.3,2.8733]
[1736267241063,1.4,3480.9,3480.0,3.23824131]
[1736267241064,0.0075,3480.8,3480.1,2.87344]
[1736267241256,0.0075,3480.8,3480.1,3.19726413]
[1736267241591,0.0075,3480.8,3480.1,0.32382413]
[1736267241750,0.02229265,3480.8,3480.1,3.32382413]
[1736267241952,0.02229265,3480.8,3480.1,0.32382413]
[1736267242192,0.02229265,3480.8,3480.3,0.0075]
[1736267242557,0.02229265,3480.8,3479.8,0.0075]
[1736267242757,1.42229265,3480.8,3479.8,0.0075]
[1736267242990,1.42229265,3480.8,3479.9,35.0]
[1736267242991,0.0075,3480.6,3479.9,35.0]
[1736267243308,0.02229265,3480.6,3479.9,0.0075]
[1736267243474,0.02229265,3480.6,3480.1,0.0075]
[1736267243658,0.0075,3480.6,3480.1,0.03623304]
[1736267243853,0.0075,3480.6,3480.0,0.38803]
[1736267244695,0.0075,3480.6,3480.1,35.0]
[1736267244856,0.02229265,3480.6,3480.1,35.0]
[1736267245069,2.89535265,3480.6,3479.8,0.999]
[1736267245373,0.02229265,3480.6,3479.8,0.999]
[1736267245692,2.89537265,3480.6,3479.8,0.999]
[1736267245898,1.3925,3480.5,3480.4,3.23824131]
[1736267246080,1.3925,3480.5,3480.4,4.18174131]
[1736267246594,1.4,3480.5,3480.4,35.9435]
[1736267246975,1.4,3480.5,3480.4,35.936]
[1736267247305,1.4,3480.5,3480.4,0.936]
[1736267247597,1.4,3480.5,3480.1,0.973]
[1736267247598,0.0075,3480.4,3480.1,0.973]
[1736267247766,0.0075,3480.4,3480.2,35.0]
[1736267247965,0.0075,3480.4,3479.8,0.973]
[1736267248263,1.3925,3480.5,3479.9,1.04131791]
[1736267248466,1.3925,3480.5,3480.1,2.87346]
[1736267248693,1.3925,3480.5,3480.4,3.23824131]
[1736267249275,1.3925,3480.5,3480.4,0.0075]
[1736267250268,1.4,3480.5,3480.4,0.0075]
[1736267250516,1.4,3480.5,3480.4,0.990898]
[1736267250809,0.0075,3480.5,3480.4,0.0075]
[1736267253704,0.0075,3480.4,3480.2,0.9443]
[1736267253879,0.0075,3480.4,3480.1,3.02873039]
[1736267254277,0.01479265,3480.7,3480.1,3.02873039]
[1736267254484,0.01479265,3480.7,3480.1,3.0]
[1736267254679,0.0075,3480.6,3480.1,3.0]
[1736267254884,0.0075,3480.6,3480.1,3.02873171]
[1736267255411,0.02979265,3480.7,3479.9,0.9209]
[1736267255707,0.0075,3480.6,3479.9,0.9209]
[1736267256072,0.0075,3480.6,3480.0,0.0075]
[1736267256267,0.0075,3480.6,3480.0,0.03623484]
[1736267256512,0.02229265,3480.7,3480.0,0.03623484]
[1736267256710,0.0075,3480.6,3480.0,0.0075]
[1736267257770,0.0075,3480.6,3479.9,0.9209]
[1736267259213,0.0075,3480.6,3479.9,3.79447]
[1736267259998,1.3925,3480.8,3480.0,3.27447279]
[1736267260193,1.3925,3480.8,3480.1,0.0075]
[1736267260577,1.3925,3480.8,3480.3,3.0075]
[1736267260778,1.3925,3480.8,3480.3,3.95101394]
[1736267261112,1.3925,3480.8,3480.3,0.92228428]
[1736267261409,1.3925,3480.8,3480.3,0.02872968]
[1736267261599,1.3925,3480.8,3480.4,35.0075]
[1736267261801,0.02229265,3481.3,3480.6,0.0075]
[1736267262317,0.02229265,3481.3,3480.6,0.9314]
[1736267263218,0.0075,3481.2,3480.6,0.9314]
[1736267263512,0.0075,3481.2,3480.6,1.31472682]
[1736267263677,0.0075,3481.2,3480.8,0.0075]
[1736267264478,0.00455631,3481.2,3480.5,0.0075]
[1736267265512,2.87716631,3481.2,3480.4,0.9099]
[1736267265809,0.02229265,3481.1,3480.1,5.87345]
[1736267265972,0.02229265,3481.3,3480.2,0.91866913]
[1736267266171,0.02229265,3481.3,3480.3,35.0]
[1736267266833,0.02229265,3481.3,3480.4,0.03622878]
[1736267267011,2.89484265,3481.3,3480.4,0.0075]
[1736267267609,0.0075,3480.9,3480.1,3.0]
[1736267267774,0.9205,3480.8,3480.3,0.0075]
[1736267267986,0.02979265,3480.7,3480.3,0.0075]
[1736267268584,0.02979265,3480.7,3479.9,0.0075]
[1736267269499,0.02979265,3480.7,3480.1,0.0075]
[1736267269894,2.90279265,3480.7,3480.1,0.0075]
[1736267270221,2.90279265,3480.7,3479.8,0.9424]
[1736267270222,0.0075,3480.4,3479.9,0.0075]
[1736267270377,0.0075,3480.3,3479.9,0.0075]
[1736267271116,0.02229265,3480.5,3479.9,0.0075]
[1736267271291,0.0075,3480.4,3479.9,0.0075]
[1736267271802,0.43529626,3480.4,3479.9,0.0075]
[1736267271989,0.0075,3480.2,3479.7,0.0075]
[1736267272418,0.0075,3480.2,3479.6,0.04076682]
[1736267272419,2.8811,3480.0,3479.6,0.03326682]
[1736267272640,0.0075,3479.8,3479.6,0.03326682]
[1736267273318,0.0075,3479.9,3479.6,0.03326682]
[1736267274097,0.0075,3479.9,3479.6,0.02576682]
[1736267274098,0.0075,3479.7,3479.6,0.02576682]
[1736267274420,0.02979265,3479.7,3479.6,0.02576682]
[1736267274623,0.0075,3479.9,3479.6,0.02576682]
[1736267275838,0.0075,3480.0,3479.6,0.02576682]
[1736267276385,1.375,3480.3,3479.7,2.70686439]
[1736267276725,1.19162003,3480.7,3480.1,0.0075]
[1736267276931,1.19162003,3480.8,3480.5,0.0075]
[1736267277096,1.19162003,3480.8,3480.5,2.90932797]
[1736267277298,1.19162003,3480.8,3480.5,0.02122797]
[1736267277486,1.19162003,3480.8,3480.2,35.9778]
[1736267277827,0.0075,3480.7,3480.2,35.9778]
[1736267278032,0.0075,3480.7,3480.3,0.0075]
[1736267278233,2.8727,3481.1,3480.3,0.0075]
[1736267278446,0.93489265,3481.0,3480.3,0.0075]
[1736267278658,0.93489265,3481.0,3480.3,0.03622994]
[1736267278995,3.77785,3481.0,3480.3,0.0075]
[1736267279232,0.02979265,3480.9,3480.3,0.0075]
[1736267279424,0.0075,3480.8,3479.9,2.91197219]
[1736267279621,0.0075,3480.8,3479.9,0.03841219]
[1736267279929,2.88041,3480.8,3479.9,0.03841219]
[1736267280139,0.0075,3480.6,3479.9,0.03841219]
[1736267280649,0.0075,3480.6,3480.0,2.87355]
[1736267280948,0.03729265,3480.8,3480.1,0.02873145]
[1736267281248,0.0075,3480.8,3480.1,2.70686439]
[1736267281409,0.02979265,3480.7,3480.2,0.0075]
[1736267281733,0.0075,3480.6,3480.2,0.0075]
[1736267283400,2.91019265,3480.8,3480.2,0.0075]
[1736267283636,1.41229265,3480.8,3480.2,0.0075]
[1736267284000,1.41229265,3480.8,3479.9,0.03091219]
[1736267284358,4.28525265,3480.8,3480.0,0.0075]
[1736267284532,0.0075,3480.6,3480.0,0.0075]
[1736267284714,0.03729265,3480.6,3480.0,0.0075]
[1736267285438,0.0075,3480.5,3480.0,0.0075]
[1736267285644,0.0075,3480.5,3479.9,0.02341219]
[1736267285844,2.88069,3480.5,3479.9,0.02341219]
[1736267286025,0.0075,3480.3,3479.9,0.02341219]
[1736267286747,0.0075,3480.1,3479.9,0.02341219]
[1736267287044,4.24856,3480.0,3479.9,0.02341219]
[1736267287548,1.3825,3480.0,3479.9,0.03091219]
[1736267288726,4.25606,3480.0,3479.9,0.03091219]
[1736267289063,4.25606,3480.0,3479.9,0.02341219]
[1736267289397,3.05042427,3480.0,3479.9,0.02341219]
[1736267289715,2.3345,3480.0,3479.9,0.02341219]
[1736267289932,5.20806,3480.0,3479.9,0.02341219]
[1736267291347,2.3345,3480.0,3479.9,0.02341219]
[1736267291663,5.23785265,3480.0,3479.9,0.02341219]
[1736267291871,5.23785265,3480.0,3479.9,0.01591219]
[1736267292080,6.10580799,3480.0,3479.9,0.01591219]
[1736267292246,6.07601534,3480.0,3479.9,0.01591219]
[1736267294076,1.375,3480.0,3479.9,0.01591219]
[1736267294282,1.40479265,3480.2,3479.9,2.71527658]
[1736267294481,1.40479265,3480.2,3479.9,0.00091219]
[1736267294482,0.02979265,3480.1,3479.9,0.00091219]
[1736267294682,0.0075,3480.0,3479.9,0.00091219]
[1736267295329,0.53245727,3480.0,3479.9,0.00091219]
[1736267296438,0.0075,3479.8,3479.2,0.2]
[1736267296661,0.0075,3479.6,3479.2,0.2]
[1736267296872,1.00109265,3479.6,3479.2,0.2]
[1736267297099,1.23870191,3479.6,3479.2,0.2]
[1736267297258,1.23870191,3479.6,3479.3,0.0075]
[1736267297259,1.00109265,3479.6,3479.3,0.0075]
[1736267297454,3.87498265,3479.6,3479.3,0.0075]
[1736267297669,0.0075,3479.4,3479.3,0.0075]
[1736267297896,0.03729265,3479.4,3479.3,0.0075]
[1736267298082,1.41229265,3479.4,3479.3,0.015]
[1736267298788,1.41229265,3479.4,3479.3,0.0075]
[1736267300131,0.9754,3480.3,3479.5,2.87392]
[1736267300285,0.02979265,3480.2,3479.6,0.38040631]
[1736267300482,0.02979265,3480.2,3479.5,5.58082439]
[1736267300483,0.02979265,3480.2,3479.5,2.70686439]
[1736267300681,2.90319265,3480.2,3479.5,2.70686439]
[1736267301120,2.87348,3480.1,3479.3,0.9014]
[1736267301322,2.88115,3479.9,3479.2,0.2]
[1736267301625,0.0075,3479.7,3479.2,0.2]
[1736267301916,0.0075,3479.7,3479.3,0.0075]
[1736267302265,1.67359427,3479.7,3479.3,0.0075]
[1736267302466,0.0075,3479.5,3479.3,0.0075]
[1736267303619,0.0075,3479.5,3479.3,0.015]
[1736267303803,0.0075,3479.5,3479.3,2.88912]
[1736267304179,1.3675,3479.6,3479.3,0.02873897]
[1736267304384,0.02979265,3480.4,3479.8,2.87367]
[1736267304615,2.57891268,3480.6,3480.0,0.015]
[1736267304912,1.3575,3480.6,3480.3,0.015]
[1736267305122,1.19162003,3481.1,3480.5,2.72186439]
[1736267305313,1.19162003,3481.1,3480.8,2.71436439]
[1736267305538,1.22141268,3481.1,3480.8,0.0075]
[1736267305736,1.19162003,3481.1,3480.5,2.70686439]
[1736267305946,1.19162003,3481.1,3480.6,0.0075]
[1736267306503,0.0075,3480.9,3480.6,0.0075]
[1736267306849,0.0075,3480.9,3480.3,2.9925]
[1736267307438,0.02979265,3481.3,3480.3,2.9925]
[1736267307439,0.0075,3481.1,3480.4,0.0075]
[1736267307638,0.0075,3481.1,3480.6,0.015]
[1736267307929,1.3575,3481.5,3480.8,2.72186439]
[1736267308133,1.3575,3481.5,3480.8,0.015]
[1736267308134,1.38729265,3481.5,3480.8,0.015]
[1736267308352,1.38729265,3481.5,3479.9,1.19491378]
[1736267308353,1.38729265,3481.5,3480.3,0.9185]
[1736267308517,2.87259,3481.2,3480.3,0.9185]
[1736267308708,0.02979265,3481.1,3480.3,0.9185]
[1736267308908,0.02979265,3481.4,3480.6,0.0075]
[1736267309112,0.9089,3481.3,3480.6,0.0075]
[1736267309314,0.02979265,3481.2,3480.6,0.0075]
[1736267309512,0.02979265,3481.2,3480.3,3.0]
[1736267310347,0.0075,3481.1,3480.5,0.0075]
[1736267310868,1.38729265,3481.2,3480.6,0.0075]
[1736267311013,1.38729265,3481.2,3480.2,0.9185]
[1736267311014,1.38729265,3481.2,3480.2,3.62536439]
[1736267311218,2.87266,3481.1,3480.2,3.62536439]
[1736267311455,0.02979265,3481.0,3480.2,3.62536439]
[1736267311650,0.02979265,3481.0,3480.3,0.0075]
[1736267311857,0.9337,3480.3,3479.8,1.11491378]
[1736267312068,1.38729265,3480.2,3480.0,1.11491378]
[1736267312556,2.8729,3480.8,3480.1,0.0075]
[1736267312740,0.02979265,3480.8,3480.1,0.0075]
[1736267313730,0.0075,3480.7,3479.9,2.70686439]
[1736267313942,2.88049,3480.7,3479.9,2.70686439]
[1736267314243,0.0075,3480.5,3479.9,2.70686439]
[1736267315356,1.3575,3480.5,3479.9,2.70686439]
[1736267315782,1.3575,3480.5,3480.0,0.0075]
[1736267316434,1.3575,3480.5,3480.0,0.65807976]
[1736267317237,0.0075,3480.4,3480.0,0.65807976]
[1736267317623,1.3575,3480.8,3480.2,0.0075]
[1736267318145,0.02979265,3481.1,3480.4,0.0075]
[1736267318346,2.87284,3480.9,3480.5,35.0]
[1736267318646,0.9573,3481.3,3480.5,35.0]
[1736267318851,2.8726,3481.2,3480.5,35.0]
[1736267319601,0.02979265,3481.1,3480.5,35.0]
[1736267319799,0.0075,3481.0,3480.5,35.0]
[1736267319962,0.0075,3481.0,3480.1,3.0]
[1736267320160,0.0075,3480.7,3480.1,3.78620082]
[1736267320498,0.03729265,3480.7,3480.1,3.78620082]
[1736267320999,0.0075,3480.7,3480.3,0.0075]
[1736267321303,0.0075,3480.9,3480.3,0.0075]
[1736267321601,0.0075,3480.8,3480.2,0.0075]
[1736267321896,0.0075,3480.8,3480.4,0.0075]
[1736267322074,2.88043,3480.8,3480.4,0.0075]
[1736267322268,0.0075,3480.6,3480.4,0.0075]
[1736267323271,0.0075,3480.6,3480.3,35.0]
[1736267323898,0.02979265,3480.9,3480.3,35.0]
[1736267324271,1.3575,3481.1,3480.3,37.70686439]
[1736267324473,1.37979265,3481.1,3480.3,37.70686439]
[1736267324986,0.0075,3481.0,3480.1,3.0]
[1736267325185,0.0075,3480.7,3480.1,3.0]
[1736267325401,0.0075,3480.7,3480.2,0.0075]
[1736267325556,0.9573,3481.3,3480.2,0.0075]
[1736267325557,0.0075,3480.4,3480.2,0.0075]
[1736267325759,2.88081,3480.3,3480.2,0.0075]
[1736267325955,1.3575,3480.3,3479.7,2.70686439]
[1736267326168,1.3575,3480.3,3479.8,0.0075]
[1736267326402,0.02979265,3480.2,3479.8,0.0075]
[1736267326773,0.0075,3480.2,3479.8,0.0075]
[1736267326970,0.0075,3480.2,3480.0,0.0075]
[1736267327401,0.0075,3480.2,3480.0,2.71436439]
[1736267327888,0.0075,3480.4,3480.2,0.0075]
[1736267328396,0.0075,3480.4,3479.8,0.27143644]
[1736267328702,0.0075,3480.5,3479.8,0.30017025]
[1736267328906,0.0075,3480.4,3479.9,35.0]
[1736267329062,0.00404168,3480.4,3479.9,35.0]
[1736267329796,0.9579,3480.7,3479.9,35.0]
[1736267330001,3.8309,3480.7,3480.0,2.73559821]
[1736267330306,3.8309,3480.7,3479.9,35.0]
[1736267330307,0.01479265,3480.6,3480.1,0.0075]
[1736267330834,0.01479265,3480.6,3480.0,0.0075]
[1736267331187,0.0075,3480.5,3480.2,0.9434]
[1736267331389,1.79813245,3481.4,3481.1,0.9005]
[1736267331593,1.79813245,3481.4,3481.1,3.60736439]
[1736267331967,1.79813245,3481.4,3481.1,38.60736439]
[1736267332203,1.79813245,3481.4,3481.1,35.9005]
[1736267332769,1.79813245,3481.4,3480.8,2.70686439]
[1736267333108,0.01479265,3481.5,3480.8,2.70686439]
[1736267333272,0.0075,3481.4,3480.9,35.0075]
[1736267333699,1.3575,3481.8,3481.2,0.0075]
[1736267333899,1.3575,3482.1,3481.5,0.0075]